fUST/lending_fUST_20251125
["ID","MTS","AMOUNT","RATE_DAILY","PERIOD"]
[394863301,1764028033094,-454.52651081,8.067e-05,2]
[394863302,1764028034810,-153.64209412,8.067e-05,2]
[394863303,1764028038523,-271.61691025,8.067e-05,2]
[394863304,1764028040252,-306.53933909,8.067e-05,2]
[394863305,1764028041765,10000.01,7.967e-05,2]
[394863306,1764028041793,10000.01,7.967e-05,2]
[394863307,1764028041820,10000.01,7.967e-05,2]
[394863308,1764028041848,10000.01,7.967e-05,2]
[394863309,1764028041875,10000.01,7.967e-05,2]
[394863310,1764028041903,10000.01,7.967e-05,2]
[394863311,1764028041930,10000.01,7.967e-05,2]
[394863312,1764028041959,10000.01,7.967e-05,2]
[394863313,1764028041987,10000.01,7.967e-05,2]
[394863314,1764028042018,25663.64710012,7.967e-05,2]
[394863315,1764028044542,-151.8744075,7.967e-05,2]
[394863316,1764028046088,-360.5417134,7.967e-05,2]
[394863317,1764028047707,-190.67228765,7.967e-05,2]
[394863318,1764028051586,759.26259487,7.887e-05,2]
[394863319,1764028051725,-177.23801457,7.967e-05,2]
[394863320,1764028053491,-179.28524712,7.967e-05,2]
[394863321,1764028055448,-288.62855109,7.967e-05,2]
[394863322,1764028057035,-377.7558876,7.967e-05,2]
[394863323,1764028061036,1464.10727277,7.887e-05,2]
[394863324,1764028063084,-296.42325654,7.967e-05,2]
[394863325,1764028064807,-235.35880061,7.967e-05,2]
[394863326,1764028068000,-209.35266033,7.967e-05,2]
[394863327,1764028070303,1200.0,7.966e-05,2]
[394863328,1764028071184,-231.5189478,7.967e-05,2]
[394863329,1764028076397,243.8081457,7.887e-05,2]
[394863330,1764028082268,300.0,7.966e-05,2]
[394863331,1764028084498,1118.89060508,7.887e-05,2]
[394863352,1764028113664,169.706727,3.686e-05,2]
[394863353,1764028114834,537.39365536,7.966e-05,2]
[394863354,1764028118917,503.32091921,7.966e-05,2]
[394863355,1764028118962,500.0,7.966e-05,2]
[394863356,1764028119030,500.0,7.966e-05,2]
[394863357,1764028119099,500.0,7.966e-05,2]
[394863358,1764028119174,500.0,7.966e-05,2]
[394863359,1764028119234,500.0,7.966e-05,2]
[394863360,1764028119286,500.0,7.966e-05,2]
[394863361,1764028119341,500.0,7.966e-05,2]
[394863362,1764028119374,203.52008001,7.966e-05,2]
[394863363,1764028119399,296.47991999,7.966e-05,2]
[394863364,1764028119473,181.93962482,7.966e-05,2]
[394863365,1764028119544,500.0,7.966e-05,2]
[394863366,1764028119666,500.0,7.966e-05,2]
[394863367,1764028119720,500.0,7.966e-05,2]
[394863368,1764028119785,500.0,7.966e-05,2]
[394863369,1764028119863,500.0,7.966e-05,2]
[394863370,1764028119923,500.0,7.966e-05,2]
[394863371,1764028119980,500.0,7.966e-05,2]
[394863372,1764028120033,500.0,7.966e-05,2]
[394863373,1764028120093,500.0,7.966e-05,2]
[394863374,1764028120147,500.0,7.966e-05,2]
[394863375,1764028120199,500.0,7.966e-05,2]
[394863376,1764028120348,500.0,7.966e-05,2]
[394863377,1764028120402,500.0,7.966e-05,2]
[394863378,1764028120455,500.0,7.966e-05,2]
[394863379,1764028120575,328.77017835,7.966e-05,2]
[394863380,1764028120618,500.0,7.966e-05,2]
[394863381,1764028121219,1025.8637483,7.886e-05,2]
[394863382,1764028124000,-437.01747107,7.967e-05,2]
[394863383,1764028124083,-10000.01,7.967e-05,2]
[394863384,1764028126252,-10000.01,7.967e-05,2]
[394863385,1764028126367,-10000.01,7.967e-05,2]
[394863386,1764028126520,-10000.01,7.967e-05,2]
[394863387,1764028126644,-10000.01,7.967e-05,2]
[394863388,1764028126771,-10000.01,7.967e-05,2]
[394863389,1764028127055,-10000.01,7.967e-05,2]
[394863390,1764028127183,-10000.01,7.967e-05,2]
[394863391,1764028159515,151.0,8.715e-05,7]
[394863392,1764028163918,-167.18385625,7.808e-05,2]
[394863394,1764028178878,-182.61743527,7.808e-05,2]
[394863395,1764028180519,-183.55548775,7.808e-05,2]
[394863396,1764028180543,-75.87367843,7.887e-05,2]
[394863397,1764028182684,-181.22672447,7.887e-05,2]
[394863398,1764028184335,-203.4970208,7.887e-05,2]
[394863399,1764028187699,-159.17983005,7.887e-05,2]
[394863416,1764028210049,50000.0,0.000111,3]
[394863428,1764028231911,-215.34911615,7.808e-05,2]
[394863429,1764028231920,-163.56385723,7.848e-05,2]
[394863431,1764028231930,-3730.55168628,7.887e-05,2]
[394863433,1764028231939,-500.0,7.943e-05,2]
[394863434,1764028231948,-188.21714756,7.943e-05,2]
[394863436,1764028231957,-500.0,7.943e-05,2]
[394863438,1764028231965,-500.0,7.943e-05,2]
[394863440,1764028231974,-500.0,7.943e-05,2]
[394863442,1764028231983,-500.0,7.943e-05,2]
[394863443,1764028231991,-500.0,7.943e-05,2]
[394863445,1764028231999,-500.0,7.943e-05,2]
[394863447,1764028232007,-500.0,7.943e-05,2]
[394863449,1764028232016,-500.0,7.943e-05,2]
[394863450,1764028232025,-500.0,7.943e-05,2]
[394863453,1764028232034,-185.29544837,7.943e-05,2]
[394863456,1764028232042,-300.0,7.966e-05,2]
[394863459,1764028232052,-1171.0,7.966e-05,2]
[394863461,1764028232061,-132555.76331627,7.967e-05,2]
[394863463,1764028232071,-282.34546992,7.967e-05,2]
[394863465,1764028232081,-17294.66422918,7.967e-05,2]
[394863467,1764028232098,-1027.6,7.967e-05,2]
[394863489,1764028237805,-2193.4165003,7.887e-05,2]
[394863492,1764028237817,-95.94193196,7.887e-05,2]
[394863494,1764028237826,-1674.25806804,7.967e-05,2]
[394863547,1764028238845,-162.26906496,7.967e-05,2]
[394863552,1764028240028,-4576.01192515,7.967e-05,2]
[394863553,1764028240521,-4986.53463261,7.967e-05,2]
[394863554,1764028241613,-3e-08,7.967e-05,2]
[394863555,1764028241739,-235.92759792,7.967e-05,2]
[394863565,1764028244726,-11468.72459457,7.967e-05,2]
[394863566,1764028245523,-204.68061024,7.967e-05,2]
[394863568,1764028245962,-641.0,7.967e-05,2]
[394863569,1764028246104,-1281.43661625,7.967e-05,2]
[394863571,1764028248231,-173.42152211,7.887e-05,2]
[394863572,1764028248513,203.98,7.9e-05,21]
[394863573,1764028250796,-265.69102181,7.887e-05,2]
[394863574,1764028254915,-197.74581279,7.887e-05,2]
[394863575,1764028257760,-285.58313935,7.887e-05,2]
[394863576,1764028259569,-384.21283943,7.887e-05,2]
[394863577,1764028261057,-300.0,7.887e-05,2]
[394863578,1764028263784,-300.0,7.808e-05,2]
[394863579,1764028265362,-164.87319919,7.808e-05,2]
[394863580,1764028283860,-174.04848096,7.787e-05,2]
[394863581,1764028286367,-204.41545471,7.787e-05,2]
[394863582,1764028290945,-223.05424406,7.787e-05,2]
[394863583,1764028292568,-250.46335638,7.787e-05,2]
[394863584,1764028294291,-288.47748175,7.787e-05,2]
[394863585,1764028296845,-175.94239484,7.787e-05,2]
[394863586,1764028298967,-156.92979705,7.787e-05,2]
[394863587,1764028300523,-241.5464534,7.787e-05,2]
[394863588,1764028300575,151.0,6.602e-05,7]
[394863589,1764028303743,-159.21353985,7.787e-05,2]
[394863590,1764028306077,-266.47809034,7.787e-05,2]
[394863591,1764028307798,-408.24363004,7.787e-05,2]
[394863592,1764028311018,-190.24228736,7.787e-05,2]
[394863593,1764028313754,-446.215756,7.787e-05,2]
[394863594,1764028321630,151.76,1e-05,2]
[394863595,1764028321904,151.76,1.1e-05,2]
[394863596,1764028322187,151.76,1.1e-05,2]
[394863597,1764028322391,-197.23116137,7.787e-05,2]
[394863598,1764028322497,151.76,1.2e-05,2]
[394863599,1764028322822,151.76,1.2e-05,2]
[394863600,1764028323233,151.76,1.3e-05,2]
[394863601,1764028323540,151.76,1.3e-05,2]
[394863602,1764028323809,151.76,1.4e-05,2]
[394863603,1764028324050,-69.52829551,7.787e-05,2]
[394863604,1764028324073,-351.74832881,7.808e-05,2]
[394863605,1764028324110,151.76,1.4e-05,2]
[394863606,1764028324484,151.76,1.5e-05,2]
[394863607,1764028324801,151.76,1.6e-05,2]
[394863608,1764028325082,151.76,1.6e-05,2]
[394863609,1764028325360,151.76,1.7e-05,2]
[394863610,1764028325645,151.76,1.7e-05,2]
[394863611,1764028325925,151.76,1.8e-05,2]
[394863612,1764028326349,151.76,1.8e-05,2]
[394863613,1764028326671,151.76,1.9e-05,2]
[394863614,1764028326946,151.76,1.9e-05,2]
[394863615,1764028326983,-233.33112594,7.808e-05,2]
[394863616,1764028327300,151.76,2e-05,2]
[394863617,1764028327600,151.76,2.1e-05,2]
[394863618,1764028327874,151.76,2.1e-05,2]
[394863619,1764028328133,151.76,2.2e-05,2]
[394863620,1764028328949,-204.89698439,7.808e-05,2]
[394863621,1764028329043,151.76,2.2e-05,2]
[394863622,1764028329536,151.76,2.3e-05,2]
[394863623,1764028329717,151.76,2.3e-05,2]
[394863624,1764028329986,151.76,2.4e-05,2]
[394863625,1764028330257,151.76,2.4e-05,2]
[394863626,1764028330567,151.76,2.5e-05,2]
[394863627,1764028330847,151.76,2.6e-05,2]
[394863628,1764028331206,-334.19759011,7.808e-05,2]
[394863629,1764028331502,151.76,2.6e-05,2]
[394863630,1764028331607,151.76,2.7e-05,2]
[394863631,1764028331807,151.76,2.7e-05,2]
[394863632,1764028332081,151.76,2.8e-05,2]
[394863633,1764028332354,151.76,2.8e-05,2]
[394863634,1764028332640,151.76,2.9e-05,2]
[394863635,1764028332958,151.76,2.9e-05,2]
[394863636,1764028333406,151.76,3e-05,2]
[394863637,1764028333505,-217.36372703,7.808e-05,2]
[394863638,1764028333858,151.76,3.1e-05,2]
[394863639,1764028334162,151.76,3.1e-05,2]
[394863640,1764028334466,151.76,3.2e-05,2]
[394863641,1764028334793,151.76,3.2e-05,2]
[394863642,1764028335090,151.76,3.3e-05,2]
[394863643,1764028335277,-172.04244832,7.808e-05,2]
[394863644,1764028335403,151.76,3.3e-05,2]
[394863645,1764028335695,151.76,3.4e-05,2]
[394863646,1764028335994,151.76,3.4e-05,2]
[394863647,1764028336937,-329.89735343,7.808e-05,2]
[394863648,1764028339156,-194.0,7.808e-05,2]
[394863649,1764028341664,-323.1023012,7.808e-05,2]
[394863650,1764028343958,-418.24057732,7.808e-05,2]
[394863651,1764028346892,-214.45717503,7.808e-05,2]
[394863652,1764028348464,-169.84559391,7.808e-05,2]
[394863653,1764028350696,-211.43809544,7.808e-05,2]
[394863654,1764028352291,-236.26636366,7.808e-05,2]
[394863655,1764028354507,-285.22507849,7.808e-05,2]
[394863656,1764028357906,-255.95758958,7.808e-05,2]
[394863657,1764028360675,-92.15428727,7.808e-05,2]
[394863658,1764028360696,-151.65450905,7.808e-05,2]
[394863659,1764028362803,-5.58949095,7.808e-05,2]
[394863660,1764028362826,-300.0,7.886e-05,2]
[394863661,1764028362849,-60.98205659,7.887e-05,2]
[394863662,1764028364467,-169.69070441,7.887e-05,2]
[394863663,1764028367237,-304.39457765,7.887e-05,2]
[394863664,1764028369506,-362.57194709,7.887e-05,2]
[394863665,1764028371747,-288.0,7.887e-05,2]
[394863666,1764028378078,-210.33789322,7.887e-05,2]
[394863667,1764028381703,152.45,1e-05,2]
[394863668,1764028382029,152.45,1.1e-05,2]
[394863669,1764028382300,152.45,1.1e-05,2]
[394863670,1764028382580,152.45,1.2e-05,2]
[394863671,1764028382914,152.45,1.2e-05,2]
[394863672,1764028383291,152.45,1.3e-05,2]
[394863673,1764028383622,152.45,1.4e-05,2]
[394863674,1764028383918,152.45,1.4e-05,2]
[394863675,1764028384232,152.45,1.5e-05,2]
[394863676,1764028384544,152.45,1.5e-05,2]
[394863677,1764028384839,152.45,1.6e-05,2]
[394863678,1764028385106,152.45,1.7e-05,2]
[394863679,1764028386036,152.45,1.7e-05,2]
[394863680,1764028386383,152.45,1.8e-05,2]
[394863681,1764028386682,152.45,1.9e-05,2]
[394863682,1764028386990,152.45,1.9e-05,2]
[394863683,1764028387316,152.45,2e-05,2]
[394863684,1764028387662,152.45,2e-05,2]
[394863685,1764028387938,152.45,2.1e-05,2]
[394863686,1764028388211,152.45,2.2e-05,2]
[394863687,1764028388486,152.45,2.2e-05,2]
[394863688,1764028388797,152.45,2.3e-05,2]
[394863689,1764028389150,152.45,2.3e-05,2]
[394863690,1764028389457,152.45,2.4e-05,2]
[394863691,1764028389740,152.45,2.5e-05,2]
[394863692,1764028389967,-209.92463222,7.887e-05,2]
[394863693,1764028390077,152.45,2.5e-05,2]
[394863694,1764028390406,152.45,2.6e-05,2]
[394863695,1764028391238,152.45,2.6e-05,2]
[394863696,1764028391776,152.45,2.7e-05,2]
[394863697,1764028391861,152.45,2.8e-05,2]
[394863698,1764028392288,152.45,2.8e-05,2]
[394863699,1764028392322,-167.0,7.887e-05,2]
[394863700,1764028392598,152.45,2.9e-05,2]
[394863701,1764028392883,152.45,3e-05,2]
[394863702,1764028393165,152.45,3e-05,2]
[394863703,1764028393449,152.45,3.1e-05,2]
[394863704,1764028393723,152.45,3.1e-05,2]
[394863705,1764028394012,152.45,3.2e-05,2]
[394863706,1764028394383,152.45,3.3e-05,2]
[394863707,1764028394671,152.45,3.3e-05,2]
[394863708,1764028394961,152.45,3.4e-05,2]
[394863709,1764028395204,-175.36913142,7.887e-05,2]
[394863710,1764028398039,-191.6825148,7.887e-05,2]
[394863711,1764028399764,-185.55938604,7.887e-05,2]
[394863712,1764028402686,-285.59235155,7.887e-05,2]
[394863713,1764028407311,-156.63332435,7.887e-05,2]
[394863716,1764028433883,-205.18627769,7.887e-05,2]
[394863717,1764028435540,-323.17818243,7.887e-05,2]
[394863718,1764028438800,-225.26886514,7.887e-05,2]
[394863719,1764028440473,-153.40096782,7.942e-05,2]
[394863720,1764028441622,300.0,7.863e-05,2]
[394863721,1764028441662,152.43,1e-05,2]
[394863722,1764028445039,-300.0,7.942e-05,2]
[394863723,1764028445061,-43.69382013,7.943e-05,2]
[394863724,1764028447065,-225.99139943,7.943e-05,2]
[394863725,1764028449453,-230.31478044,7.943e-05,2]
[394863726,1764028449476,-0.03700955,7.943e-05,2]
[394863727,1764028451649,-151.05144922,7.943e-05,2]
[394863728,1764028455631,-211.99416352,7.943e-05,2]
[394863729,1764028457356,-139.05799872,7.943e-05,2]
[394863730,1764028457381,-65.21451301,7.943e-05,2]
[394863731,1764028459789,-328.2104223,7.943e-05,2]
[394863732,1764028462086,-106.57506469,7.943e-05,2]
[394863733,1764028462108,-122.50181276,7.943e-05,2]
[394863734,1764028464051,2377.49818724,7.863e-05,2]
[394863735,1764028465271,-174.41555747,7.943e-05,2]
[394863736,1764028466982,-203.08262977,7.943e-05,2]
[394863737,1764028467005,-40.58365778,7.943e-05,2]
[394863739,1764028470965,-401.86366203,7.943e-05,2]
[394863740,1764028472577,-57.55268019,7.943e-05,2]
[394863741,1764028472598,-224.6124134,7.943e-05,2]
[394863742,1764028474340,-261.94685521,7.943e-05,2]
[394863754,1764028478590,-13.44073139,7.943e-05,2]
[394863755,1764028478612,-286.55926861,7.943e-05,2]
[394863764,1764028480372,-213.44073139,7.943e-05,2]
[394863766,1764028480393,-98.08178686,7.943e-05,2]
[394863771,1764028482001,-297.57231823,7.943e-05,2]
[394863772,1764028485857,-104.34589491,7.943e-05,2]
[394863773,1764028485890,-160.16753111,7.966e-05,2]
[394863774,1764028487505,3715.2278339,7.886e-05,2]
[394863775,1764028488468,-339.83246889,7.966e-05,2]
[394863776,1764028488499,-56.16324807,7.966e-05,2]
[394863777,1764028490259,-199.08740762,7.966e-05,2]
[394863778,1764028493073,-244.74934431,7.966e-05,2]
[394863779,1764028493103,-192.60023501,7.966e-05,2]
[394863781,1764028496113,-307.39976499,7.966e-05,2]
[394863782,1764028496144,-120.9222235,7.966e-05,2]
[394863784,1764028510253,19943.0,0.000111,3]
[394863785,1764028524059,10000.01,7.159e-05,2]
[394863786,1764028524086,15060.8337317,7.159e-05,2]
[394863790,1764028562277,151.3,1e-05,2]
[394863791,1764028562533,151.3,1.1e-05,2]
[394863792,1764028562769,151.3,1.2e-05,2]
[394863793,1764028563065,151.3,1.3e-05,2]
[394863794,1764028563343,151.3,1.3e-05,2]
[394863795,1764028563700,151.3,1.4e-05,2]
[394863796,1764028564028,151.3,1.5e-05,2]
[394863797,1764028564336,151.3,1.6e-05,2]
[394863798,1764028564858,151.3,1.7e-05,2]
[394863799,1764028565167,151.3,1.8e-05,2]
[394863800,1764028565437,151.3,1.9e-05,2]
[394863801,1764028565807,151.3,2e-05,2]
[394863802,1764028566099,151.3,2e-05,2]
[394863803,1764028566421,151.3,2.1e-05,2]
[394863804,1764028566733,151.3,2.2e-05,2]
[394863805,1764028567436,151.3,2.3e-05,2]
[394863806,1764028567499,151.3,2.4e-05,2]
[394863807,1764028567590,151.3,2.5e-05,2]
[394863808,1764028567899,151.3,2.6e-05,2]
[394863809,1764028568260,151.3,2.7e-05,2]
[394863810,1764028568534,151.3,2.7e-05,2]
[394863811,1764028568830,151.3,2.8e-05,2]
[394863812,1764028569102,151.3,2.9e-05,2]
[394863813,1764028569408,151.3,3e-05,2]
[394863814,1764028569685,151.3,3.1e-05,2]
[394863815,1764028569964,151.3,3.2e-05,2]
[394863816,1764028570880,151.3,3.3e-05,2]
[394863817,1764028571231,151.3,3.4e-05,2]
[394863818,1764028571596,151.3,3.4e-05,2]
[394863893,1764028733852,-297.79686823,7.863e-05,2]
[394863894,1764028735985,-359.36207344,7.863e-05,2]
[394863896,1764028812399,2553.0,0.000111,3]
[394863899,1764028904053,157.245,7.808e-05,2]
[394863906,1764028917916,1345.03678492,7.784e-05,2]
[394863907,1764028921026,-163.59004407,7.903e-05,2]
[394863908,1764028921048,-8.1134323,7.942e-05,2]
[394863909,1764028921742,156.72,1e-05,2]
[394863911,1764028922046,156.72,1.2e-05,2]
[394863912,1764028922319,156.72,1.4e-05,2]
[394863913,1764028922616,156.72,1.7e-05,2]
[394863914,1764028922913,156.72,1.9e-05,2]
[394863915,1764028923193,156.72,2.1e-05,2]
[394863916,1764028923628,156.72,2.3e-05,2]
[394863917,1764028923859,-161.57931809,7.942e-05,2]
[394863918,1764028924008,156.72,2.6e-05,2]
[394863919,1764028924291,156.72,2.8e-05,2]
[394863920,1764028924586,156.72,3e-05,2]
[394863921,1764028924886,156.72,3.2e-05,2]
[394863927,1764028982196,156.71,1e-05,2]
[394863928,1764028982541,156.71,1.2e-05,2]
[394863929,1764028982863,156.71,1.4e-05,2]
[394863930,1764028983186,156.71,1.6e-05,2]
[394863931,1764028983633,156.71,1.8e-05,2]
[394863932,1764028983905,156.71,2e-05,2]
[394863933,1764028984235,156.71,2.2e-05,2]
[394863934,1764028984623,156.71,2.4e-05,2]
[394863935,1764028985069,156.71,2.6e-05,2]
[394863936,1764028985342,156.71,2.8e-05,2]
[394863937,1764028985631,156.71,3e-05,2]
[394863938,1764028985919,156.71,3.2e-05,2]
[394863940,1764029035532,1013.007806,7.85e-05,2]
[394863941,1764029042332,156.65,1e-05,2]
[394863953,1764029109861,2635.0,0.000111,3]
[394863954,1764029132337,528.30724961,7.784e-05,2]
[394863955,1764029155305,528.0,7.786e-05,2]
[394863956,1764029177987,528.0,7.786e-05,2]
[394863959,1764029243677,528.0,7.786e-05,2]
[394863960,1764029265960,528.0,7.786e-05,2]
[394863961,1764029288339,176.61413148,7.786e-05,2]
[394863963,1764029333959,-228.0,7.865e-05,2]
[394863964,1764029333990,-72.0,7.865e-05,2]
[394863965,1764029336196,-456.97894695,7.865e-05,2]
[394863966,1764029337997,-128.02105305,7.865e-05,2]
[394863967,1764029338021,-124.43504121,7.865e-05,2]
[394863968,1764029378904,-167.07545631,7.864e-05,2]
[394863980,1764029407553,-300.0,7.864e-05,2]
[394863982,1764029407606,-500.0,7.865e-05,2]
[394863983,1764029407647,-500.0,7.865e-05,2]
[394863984,1764029407673,-500.0,7.865e-05,2]
[394863985,1764029407700,-500.0,7.865e-05,2]
[394863986,1764029407734,-500.0,7.865e-05,2]
[394863987,1764029407784,-500.0,7.865e-05,2]
[394863988,1764029407812,-295.2812337,7.865e-05,2]
[394863989,1764029407860,-500.0,7.865e-05,2]
[394863990,1764029407907,-500.0,7.865e-05,2]
[394863991,1764029407946,-500.0,7.865e-05,2]
[394863992,1764029407974,-500.0,7.865e-05,2]
[394863993,1764029408005,-500.0,7.865e-05,2]
[394863994,1764029408039,-500.0,7.865e-05,2]
[394863995,1764029408065,-500.0,7.865e-05,2]
[394863996,1764029408090,-500.0,7.865e-05,2]
[394863997,1764029408114,-500.0,7.865e-05,2]
[394863998,1764029408138,-500.0,7.865e-05,2]
[394863999,1764029408349,-500.0,7.865e-05,2]
[394864000,1764029408374,-500.0,7.865e-05,2]
[394864001,1764029408406,-500.0,7.865e-05,2]
[394864002,1764029408430,-500.0,7.865e-05,2]
[394864003,1764029408461,-500.0,7.865e-05,2]
[394864004,1764029408492,-500.0,7.865e-05,2]
[394864005,1764029408516,-500.0,7.865e-05,2]
[394864006,1764029408547,-500.0,7.865e-05,2]
[394864007,1764029408579,-500.0,7.865e-05,2]
[394864008,1764029408611,-500.0,7.865e-05,2]
[394864009,1764029408646,-500.0,7.865e-05,2]
[394864010,1764029408679,-500.0,7.865e-05,2]
[394864011,1764029408713,-500.0,7.865e-05,2]
[394864012,1764029408747,-500.0,7.865e-05,2]
[394864013,1764029408779,-500.0,7.865e-05,2]
[394864014,1764029408811,-500.0,7.865e-05,2]
[394864015,1764029408842,-500.0,7.865e-05,2]
[394864016,1764029408876,-500.0,7.865e-05,2]
[394864017,1764029408909,-500.0,7.865e-05,2]
[394864018,1764029408940,-500.0,7.865e-05,2]
[394864019,1764029408970,-500.0,7.865e-05,2]
[394864020,1764029409007,-500.0,7.865e-05,2]
[394864021,1764029409039,-500.0,7.865e-05,2]
[394864022,1764029409070,-443.56254046,7.865e-05,2]
[394864023,1764029409101,-500.0,7.865e-05,2]
[394864024,1764029409133,-500.0,7.865e-05,2]
[394864025,1764029409164,-500.0,7.865e-05,2]
[394864026,1764029409199,-500.0,7.865e-05,2]
[394864027,1764029409235,-500.0,7.865e-05,2]
[394864028,1764029409267,-500.0,7.865e-05,2]
[394864029,1764029409299,-500.0,7.865e-05,2]
[394864030,1764029409329,-500.0,7.865e-05,2]
[394864031,1764029409360,-500.0,7.865e-05,2]
[394864032,1764029409391,-500.0,7.865e-05,2]
[394864033,1764029409421,-500.0,7.865e-05,2]
[394864034,1764029409457,-500.0,7.865e-05,2]
[394864035,1764029409493,-500.0,7.865e-05,2]
[394864036,1764029409528,-500.0,7.865e-05,2]
[394864037,1764029409561,-500.0,7.865e-05,2]
[394864038,1764029409594,-500.0,7.865e-05,2]
[394864039,1764029409630,-500.0,7.865e-05,2]
[394864040,1764029409664,-500.0,7.865e-05,2]
[394864041,1764029409707,-500.0,7.865e-05,2]
[394864042,1764029409743,-500.0,7.865e-05,2]
[394864043,1764029409777,-500.0,7.865e-05,2]
[394864044,1764029409811,-500.0,7.865e-05,2]
[394864045,1764029409843,-558.67491738,7.865e-05,2]
[394864046,1764029409879,-500.0,7.865e-05,2]
[394864047,1764029409915,-500.0,7.865e-05,2]
[394864048,1764029409949,-500.0,7.865e-05,2]
[394864049,1764029409985,-500.0,7.865e-05,2]
[394864050,1764029410019,-500.0,7.865e-05,2]
[394864051,1764029410053,-500.0,7.865e-05,2]
[394864052,1764029410090,-500.0,7.865e-05,2]
[394864053,1764029410125,-500.0,7.865e-05,2]
[394864054,1764029410157,-250.00000001,7.865e-05,2]
[394864055,1764029410191,-500.0,7.865e-05,2]
[394864056,1764029410223,-500.0,7.865e-05,2]
[394864057,1764029410256,-500.0,7.865e-05,2]
[394864058,1764029410291,-500.0,7.865e-05,2]
[394864059,1764029410323,-500.0,7.865e-05,2]
[394864060,1764029410354,-500.0,7.865e-05,2]
[394864061,1764029410378,-160.31824319,7.866e-05,2]
[394864062,1764029410403,-376.17555875,7.866e-05,2]
[394864063,1764029410427,-300.0,7.866e-05,2]
[394864064,1764029411015,2471.0,0.000111,3]
[394864074,1764029418543,-7314.16397886,7.867e-05,2]
[394864089,1764029426056,152.1559917,7.788e-05,2]
[394864090,1764029427051,-209663.83151481,7.867e-05,2]
[394864154,1764029438191,-73677.57266469,7.867e-05,2]
[394864161,1764029438248,-3949.48138411,7.867e-05,2]
[394864168,1764029438309,-2277.78,7.867e-05,2]
[394864368,1764029441090,-28001.36493557,7.867e-05,2]
[394864371,1764029441102,-2280.22095889,7.867e-05,2]
[394864470,1764029442079,-3e-08,7.867e-05,2]
[394864472,1764029442091,-366.39040813,7.867e-05,2]
[394864778,1764029445126,-405.80182514,7.867e-05,2]
[394864788,1764029445210,-1096.65565274,7.867e-05,2]
[394864988,1764029461831,150.33,1e-05,2]
[394864989,1764029461962,150.33,1.1e-05,2]
[394864990,1764029462276,150.33,1.1e-05,2]
[394864991,1764029462562,150.33,1.2e-05,2]
[394864992,1764029462843,150.33,1.3e-05,2]
[394864993,1764029463116,150.33,1.4e-05,2]
[394864994,1764029463391,150.33,1.4e-05,2]
[394864995,1764029463680,150.33,1.5e-05,2]
[394864996,1764029464001,150.33,1.6e-05,2]
[394864997,1764029464442,150.33,1.7e-05,2]
[394864998,1764029464476,1639.6149127,7.243e-05,2]
[394864999,1764029464772,150.33,1.7e-05,2]
[394865000,1764029465058,150.33,1.8e-05,2]
[394865001,1764029465401,150.33,1.9e-05,2]
[394865002,1764029465678,150.33,2e-05,2]
[394865003,1764029465998,150.33,2e-05,2]
[394865004,1764029466282,150.33,2.1e-05,2]
[394865005,1764029466640,150.33,2.2e-05,2]
[394865006,1764029466932,150.33,2.3e-05,2]
[394865007,1764029467285,150.33,2.3e-05,2]
[394865008,1764029467822,150.33,2.4e-05,2]
[394865009,1764029468201,150.33,2.5e-05,2]
[394865010,1764029468372,150.33,2.6e-05,2]
[394865011,1764029468560,150.33,2.6e-05,2]
[394865012,1764029468885,150.33,2.7e-05,2]
[394865014,1764029469183,150.33,2.8e-05,2]
[394865015,1764029469421,150.33,2.8e-05,2]
[394865016,1764029469705,150.33,2.9e-05,2]
[394865017,1764029469975,150.33,3e-05,2]
[394865018,1764029470259,150.33,3.1e-05,2]